{"text_format":"2","workbook":"xlsx","n_sheets":1,"sheets":["EXECUTADO"],"not_rendered":{"charts":0,"images":0,"macros":0,"external_links":0,"defined_names":0,"comments":0,"pivot_tables":0},"unopened":[],"bounds":{"document_bytes":16777216,"sheet_cells":100000,"run_cost":"one","rows_first":2000,"rows_last":500,"rows_between":2000,"halvings":0,"cell_chars":16384,"cell_head_chars":4096},"cells_cut":0,"cells_raw":0,"read":"whole","date_system":"1900"}

{"sheet":"EXECUTADO","index":0,"n_rows":46,"n_cols":8,"rows_kept":46,"cut":false,"hidden":false,"merged":[[0,1,1,1],[0,2,0,4],[0,5,1,5],[5,6,5,7],[42,4,44,4]]}
[null,"horas","EXECUTADO",null,null,"ONDE/ QUAL EVENTO"]
[null,null,"quantidade","coautoria (S/N)","contabilizado"]
["1 Apresentação e publicação de um artigo completo em evento científico de comunicação ou áreas afins"]
["1.2.1 Internacional",24.0,null,null,{"$f":"IF(D4=\"S\",C4*B4+20,C4*B4)","v":0}]
["1.2.2 Nacional",16.0,null,null,0]
["1.2.3 Regional ou Local",12.0,null,null,0,null,"CONFIRA SEU SALDO"]
[{"$nulls":6},"MESTRADO","DOUTORADO"]
["2 Apresentação e publicação de resumo expandido em evento científico de comunicação ou áreas afins",{"$nulls":5},{"$f":"SUM(E4:E46)-192","v":-192},{"$f":"-384+SUM(E4:E46)","v":-384}]
["2.1 Internacional",12.0,null,null,{"$f":"IF(D9=\"S\",C9*B9+5,C9*B9)","v":0}]
["2.2 Nacional",6.0,null,null,0]
["2.3 Regional ou Local",4.0,null,null,0]
[]
["3 Artigo completo publicados em periódicos Qualis A: 1 a 4 ou fator de impacto equivalente",96.0,null,null,{"$f":"IF(D13=\"S\",C13*B13+20,C13*B13)","v":0}]
[]
["4 Artigo completo publicados em periódicos Qualis B: 1 a 4 ou fator de impacto equivalente",48.0,null,null,{"$f":"IF(D15=\"S\",C15*B15+20,C15*B15)","v":0}]
[]
["5 Membro de comissão organizadora do Semic",24.0,null,null,{"$f":"MIN(C17*B17,24)","v":0}]
[]
["6 Membro de comissão de publicação da Revista Comunicação & Informação (Somente para doutorandos)",72.0,null,null,{"$f":"MIN(C19*B19,72)","v":0}]
[]
["7 Organização/Edição de livro publicado por editora universitária",24.0,null,null,{"$f":"MIN(C21*B21,48)","v":0}]
[]
["8 Livro autoral publicado por editora universitária",96.0,null,null,{"$f":"B23*C23","v":0}]
[]
["9 Publicação de capítulo de livro por editora universitária interna à UFG que possua corpo editorial",16.0,null,null,{"$f":"IF(D25=\"S\",C25*(B25+20),C25*B25)","v":0}]
[]
["10 Publicação de capítulo de livro por editora universitária externa à UFG que possua corpo editorial",24.0,null,null,{"$f":"IF(D27=\"S\",C27*(B27+20),C27*B27)","v":0}]
[]
["11 Publicação de capítulo de livro por editora não universitária que possua corpo editorial",12.0,null,null,{"$f":"IF(D29=\"S\",C29*B29+20,C29*B29)","v":0}]
[]
["12 Membro da comissão de bolsa e acompanhamento discente do PPGCOM",40.0,null,null,{"$f":"MIN(C31*B31,40)","v":0}]
[]
["13 Membro da Representação Estudantil ",48.0,null,null,{"$f":"MIN(C33*B33,48)","v":0}]
[]
["14 Atividades diversas atribuídas pelo PPGCOM",null,null,null,{"$f":"C35*B35","v":0}]
[]
["15 Ministração de palestras, cursos e composição de mesas redondas com temáticas ligadas à comunicação",16.0,null,null,{"$f":"MIN(C37*B37,32)","v":0}]
[]
["16 Prêmios e títulos recebidos (mediante envio do certificado para a Secretaria)",6.0,null,null,{"$f":"B39*C39","v":0}]
[]
["17 Atividades Aplicadas ao Aperfeiçoamento"]
["a) Curso de aperfeiçoamento relacionado à área do Programa (com certificado de no mínimo 10 horas)",10.0,null,null,{"$f":"MIN(B42*C42,20)","v":0}]
["b1) Participação em Congressos, Seminários, Encontros, Jornadas",5.0,null,null,{"$f":"MIN(B43*C43+B44*C44+B45*C45,30)","v":0}]
["b2) Participação em bancas de qualificação e defesa na condição de ouvinte ",3.0]
["b3) A participação obrigatória no Semic equivale a 10 horas anuais.",10.0]
["c) Participação em lives e/ou eventos isolados na condição de ouvinte",2.0,null,null,{"$f":"MIN(B46*C46,4)","v":0}]